fUST/lending_fUST_20250802
["ID","MTS","AMOUNT","RATE_DAILY","PERIOD"]
[376732569,1754091050150,-920.78,0.00020336,2]
[376732570,1754091050159,-460.0,0.00020336,2]
[376732571,1754091050169,-460.0,0.00020336,2]
[376732572,1754091050178,-691.07,0.00020336,2]
[376732573,1754091050187,-926.42,0.00020337,2]
[376732574,1754091050197,-460.0,0.00020337,2]
[376732575,1754091050206,-460.0,0.00020337,2]
[376732576,1754091050215,-151.0,0.00020337,2]
[376732577,1754091050225,-154.64,0.00020337,2]
[376732578,1754091050235,-460.0,0.00020337,2]
[376732579,1754091050245,-1004.42,0.00020337,2]
[376732580,1754091050254,-693.44,0.00020337,2]
[376732581,1754091050263,-511.5,0.00020337,2]
[376732582,1754091050273,-151.0,0.00020337,2]
[376732583,1754091050282,-460.0,0.00020337,2]
[376732584,1754091050291,-1029.66,0.00020337,2]
[376732585,1754091050300,-635.142156,0.00020337,2]
[376732586,1754091050310,-635.142156,0.00020337,2]
[376732587,1754091050321,-460.0,0.00020337,2]
[376732588,1754091050330,-175.121503,0.00020337,2]
[376732589,1754091050339,-460.0,0.00020337,2]
[376732590,1754091050348,-175.121503,0.00020337,2]
[376732591,1754091050358,-462.19,0.00020337,2]
[376732592,1754091050367,-460.0,0.00020337,2]
[376732593,1754091050376,-460.0,0.00020337,2]
[376732594,1754091050385,-846.17,0.00020337,2]
[376732595,1754091050394,-151.0,0.00020337,2]
[376732596,1754091050408,-460.0,0.00020337,2]
[376732597,1754091050417,-330.289489,0.00020337,2]
[376732598,1754091050427,-330.289489,0.00020337,2]
[376732599,1754091050436,-151.0,0.00020337,2]
[376732600,1754091050446,-621.67,0.00020337,2]
[376732601,1754091050456,-184.053969,0.00020337,2]
[376732602,1754091050465,-184.053969,0.00020337,2]
[376732603,1754091050476,-924.56,0.00020337,2]
[376732604,1754091050486,-566.98,0.00020337,2]
[376732605,1754091050495,-1675.56,0.00020337,2]
[376732606,1754091050505,-151.0,0.00020337,2]
[376732607,1754091050514,-460.0,0.00020337,2]
[376732608,1754091050523,-460.0,0.00020337,2]
[376732609,1754091050532,-460.0,0.00020337,2]
[376732610,1754091050542,-460.0,0.00020337,2]
[376732611,1754091050554,-1419.71,0.00020337,2]
[376732612,1754091050571,-460.0,0.00020337,2]
[376732613,1754091050591,-460.0,0.00020337,2]
[376732614,1754091050611,-460.0,0.00020337,2]
[376732615,1754091050621,-572.14,0.00020337,2]
[376732616,1754091050630,-460.0,0.00020337,2]
[376732617,1754091050640,-460.0,0.00020337,2]
[376732618,1754091050649,-557.79,0.00020338,2]
[376732619,1754091050659,-460.0,0.00020338,2]
[376732620,1754091050668,-151.0,0.00020338,2]
[376732621,1754091050677,-1508.75,0.00020338,2]
[376732622,1754091050687,-460.0,0.00020338,2]
[376732623,1754091050696,-437.25484095,0.00020338,2]
[376732624,1754091050705,-460.0,0.00020338,2]
[376732625,1754091050714,-460.0,0.00020338,2]
[376732626,1754091050723,-460.0,0.00020338,2]
[376732627,1754091050733,-554.96,0.00020338,2]
[376732628,1754091050742,-460.0,0.00020338,2]
[376732629,1754091050752,-460.0,0.00020338,2]
[376732630,1754091050761,-1916.86,0.00020338,2]
[376732631,1754091050770,-727.88,0.00020339,2]
[376732632,1754091050779,-516.88,0.00020339,2]
[376732633,1754091050789,-460.0,0.00020339,2]
[376732634,1754091050798,-535.37,0.00020339,2]
[376732635,1754091050808,-2985.37,0.00020339,2]
[376732636,1754091050817,-191.03217098,0.00020339,2]
[376732638,1754091050826,-460.0,0.00020339,2]
[376732640,1754091050836,-460.0,0.00020339,2]
[376732642,1754091050845,-1912.99,0.0002034,2]
[376732643,1754091050855,-460.0,0.0002034,2]
[376732644,1754091050864,-151.0,0.00020341,2]
[376732645,1754091050874,-151.0,0.00020341,2]
[376732647,1754091050883,-151.0,0.00020341,2]
[376732649,1754091050893,-151.0,0.00020341,2]
[376732651,1754091050902,-151.0,0.00020341,2]
[376732655,1754091050922,-1524.87866463,0.00020344,2]
[376732657,1754091050933,-462.13637724,0.00020373,2]
[376732659,1754091050943,-500.0,0.00020373,2]
[376732661,1754091050953,-500.0,0.00020373,2]
[376732663,1754091050962,-500.0,0.00020373,2]
[376732665,1754091050972,-151.0,0.000204,3]
[376732667,1754091050982,-653.46840815,0.00020452,3]
[376732669,1754091050991,-546.40367112,0.00020579,2]
[376732671,1754091051001,-151.0,0.000206,3]
[376732673,1754091051011,-4848.52,0.00020601,3]
[376732675,1754091051020,-2424.26,0.00020601,3]
[376732677,1754091051029,-1212.14,0.00020601,3]
[376732679,1754091051039,-160.0,0.00020602,3]
[376732681,1754091051048,-312.16666667,0.00020602,3]
[376732683,1754091051058,-12644.26590849,0.00020602,3]
[376732685,1754091051067,-460.76838597,0.00020602,3]
[376732686,1754091051077,-215.03686253,0.00020602,3]
[376732687,1754091051087,-151.0,0.00020602,2]
[376732688,1754091051096,-606.06,0.00020603,3]
[376732689,1754091051106,-530.25,0.00020608,2]
[376732690,1754091051115,-526.08,0.00020608,2]
[376732691,1754091051125,-904.57,0.00020608,2]
[376732692,1754091051135,-460.0,0.00020608,2]
[376732693,1754091051144,-460.0,0.00020608,2]
[376732694,1754091051154,-1626.44,0.00020609,2]
[376732695,1754091051163,-650.75,0.00020609,2]
[376732696,1754091051173,-460.0,0.00020609,2]
[376732697,1754091051182,-460.0,0.00020609,2]
[376732698,1754091051192,-767.29,0.00020609,2]
[376732699,1754091051202,-1087.58,0.00020609,2]
[376732700,1754091051212,-683.87,0.00020609,2]
[376732701,1754091051222,-1381.02,0.00020609,2]
[376732702,1754091051231,-525.6,0.00020609,2]
[376732703,1754091051241,-270.75,0.00020609,2]
[376732704,1754091051250,-460.0,0.00020609,2]
[376732705,1754091051260,-657.93,0.00020609,2]
[376732706,1754091051269,-460.0,0.00020609,2]
[376732707,1754091051278,-472.11,0.00020609,2]
[376732708,1754091051288,-460.0,0.00020609,2]
[376732709,1754091051298,-654.22,0.00020609,2]
[376732710,1754091051307,-1062.48,0.00020609,2]
[376732711,1754091051317,-460.0,0.00020609,2]
[376732712,1754091051326,-460.0,0.00020609,2]
[376732713,1754091051335,-460.0,0.0002061,2]
[376732714,1754091051345,-460.0,0.0002061,2]
[376732715,1754091051354,-534.57,0.0002061,2]
[376732716,1754091051364,-460.0,0.0002061,2]
[376732717,1754091051373,-460.0,0.0002061,2]
[376732718,1754091051383,-6339.86,0.0002061,2]
[376732719,1754091051392,-460.0,0.0002061,2]
[376732720,1754091051406,-460.0,0.0002061,2]
[376732721,1754091051415,-460.0,0.0002061,2]
[376732722,1754091051425,-460.36,0.0002061,2]
[376732723,1754091051434,-460.0,0.0002061,2]
[376732724,1754091051445,-3261.32,0.0002061,2]
[376732725,1754091051455,-460.0,0.0002061,2]
[376732726,1754091051465,-854.96,0.0002061,2]
[376732727,1754091051475,-460.0,0.0002061,2]
[376732728,1754091051484,-582.52,0.0002061,2]
[376732729,1754091051494,-460.0,0.0002061,2]
[376732730,1754091051503,-460.0,0.0002061,2]
[376732731,1754091051512,-376.96,0.0002061,2]
[376732732,1754091051522,-946.35,0.0002061,2]
[376732733,1754091051531,-587.9,0.0002061,2]
[376732734,1754091051542,-460.0,0.0002061,2]
[376732735,1754091051551,-534.27,0.0002061,2]
[376732736,1754091051561,-460.0,0.0002061,2]
[376732737,1754091051570,-460.0,0.0002061,2]
[376732738,1754091051579,-460.0,0.0002061,2]
[376732739,1754091051589,-612.02,0.0002061,2]
[376732740,1754091051598,-460.0,0.0002061,2]
[376732741,1754091051607,-516.09,0.0002061,2]
[376732742,1754091051617,-865.73,0.0002061,2]
[376732743,1754091051626,-545.71,0.0002061,2]
[376732744,1754091051636,-689.51,0.0002061,2]
[376732745,1754091051646,-1842.57,0.0002061,2]
[376732746,1754091051655,-460.0,0.0002061,2]
[376732747,1754091051665,-556.43,0.0002061,2]
[376732748,1754091051674,-460.0,0.0002061,2]
[376732749,1754091051685,-460.0,0.0002061,2]
[376732750,1754091051695,-460.0,0.0002061,2]
[376732751,1754091051705,-546.06,0.0002061,2]
[376732752,1754091051714,-468.36,0.0002061,2]
[376732753,1754091051724,-460.0,0.0002061,2]
[376732754,1754091051733,-460.0,0.0002061,2]
[376732755,1754091051743,-460.0,0.0002061,2]
[376732756,1754091051752,-920.78,0.0002061,2]
[376732757,1754091051773,-460.0,0.0002061,2]
[376732758,1754091051794,-460.0,0.0002061,2]
[376732759,1754091051803,-691.07,0.0002061,2]
[376732760,1754091051815,-151.0,0.00020611,2]
[376732761,1754091051828,-151.0,0.00020611,2]
[376732762,1754091051838,-151.0,0.00020611,2]
[376732763,1754091051850,-926.42,0.00020611,2]
[376732764,1754091051862,-151.0,0.00020611,2]
[376732765,1754091051871,-460.0,0.00020611,2]
[376732766,1754091051881,-460.0,0.00020611,2]
[376732767,1754091051892,-460.0,0.00020611,2]
[376732768,1754091051903,-1004.42,0.00020611,2]
[376732769,1754091051912,-693.44,0.00020611,2]
[376732770,1754091051922,-511.5,0.00020611,2]
[376732771,1754091051931,-151.0,0.00020611,2]
[376732772,1754091051941,-460.0,0.00020611,2]
[376732773,1754091051950,-1029.66,0.00020611,2]
[376732774,1754091051959,-460.0,0.00020611,2]
[376732775,1754091051969,-462.19,0.00020611,2]
[376732776,1754091051979,-460.0,0.00020611,2]
[376732777,1754091051988,-460.0,0.00020611,2]
[376732778,1754091051997,-846.17,0.00020611,2]
[376732779,1754091052009,-621.67,0.00020611,2]
[376732780,1754091052019,-924.56,0.00020611,2]
[376732781,1754091052029,-566.98,0.00020611,2]
[376732782,1754091052038,-1675.56,0.00020611,2]
[376732783,1754091052047,-460.0,0.00020611,2]
[376732784,1754091052057,-460.0,0.00020611,2]
[376732785,1754091052066,-460.0,0.00020611,2]
[376732786,1754091052076,-460.0,0.00020611,2]
[376732787,1754091052085,-1419.71,0.00020611,2]
[376732788,1754091052095,-460.0,0.00020611,2]
[376732789,1754091052223,-460.0,0.00020611,2]
[376732790,1754091052233,-460.0,0.00020611,2]
[376732791,1754091052242,-460.0,0.00020611,2]
[376732792,1754091052251,-460.0,0.00020611,2]
[376732793,1754091052260,-557.79,0.00020612,2]
[376732794,1754091052270,-460.0,0.00020612,2]
[376732795,1754091052280,-1508.75,0.00020612,2]
[376732796,1754091052289,-460.0,0.00020612,2]
[376732797,1754091052298,-460.0,0.00020612,2]
[376732798,1754091052307,-460.0,0.00020612,2]
[376732799,1754091052317,-460.0,0.00020612,2]
[376732800,1754091052326,-554.96,0.00020612,2]
[376732801,1754091052335,-460.0,0.00020612,2]
[376732802,1754091052344,-460.0,0.00020612,2]
[376732803,1754091052354,-1916.86,0.00020612,2]
[376732804,1754091052363,-727.88,0.00020613,2]
[376732805,1754091052373,-535.37,0.00020613,2]
[376732806,1754091052382,-2985.37,0.00020613,2]
[376732807,1754091052392,-460.0,0.00020613,2]
[376732808,1754091052405,-151.0,0.00020613,2]
[376732809,1754091052414,-460.0,0.00020613,2]
[376732810,1754091052424,-1912.99,0.00020614,2]
[376732811,1754091052435,-540.54786066,0.00020614,2]
[376732812,1754091052445,-1000.0,0.00020621,2]
[376732813,1754091052454,-1000.0,0.00020621,2]
[376732814,1754091052464,-1000.0,0.00020621,2]
[376732815,1754091052474,-1000.0,0.00020621,2]
[376732816,1754091052484,-1004.16364285,0.00020621,2]
[376732817,1754091052493,-1000.0,0.00020621,2]
[376732818,1754091052503,-233.16621669,0.00020621,2]
[376732819,1754091052513,-1000.0,0.00020621,2]
[376732820,1754091052522,-151.0,0.00020621,2]
[376732821,1754091052532,-330.289489,0.00020621,2]
[376732822,1754091052542,-330.289489,0.00020621,2]
[376732823,1754091052552,-184.053969,0.00020621,2]
[376732824,1754091052561,-184.053969,0.00020621,2]
[376732825,1754091052571,-500.0,0.00020668,2]
[376732826,1754091052580,-151.0,0.000207,3]
[376732827,1754091052590,-653.46840815,0.00020728,3]
[376732828,1754091052600,-151.0,0.000208,4]
[376732829,1754091052610,-160.0,0.00020837,2]
[376732830,1754091052619,-160.0,0.00020837,2]
[376732831,1754091052629,-231.52694941,0.00020837,2]
[376732832,1754091052638,-841.53699354,0.00020837,2]
[376732833,1754091052647,-160.0,0.00020837,2]
[376732834,1754091052657,-160.0,0.00020837,2]
[376732835,1754091052667,-160.0,0.00020837,2]
[376732836,1754091052677,-160.0,0.00020837,2]
[376732837,1754091052687,-160.0,0.00020837,2]
[376732838,1754091052697,-460.76838597,0.00020837,2]
[376732839,1754091052707,-160.0,0.00020837,2]
[376732840,1754091052716,-312.16666667,0.00020837,2]
[376732841,1754091052725,-216.22890603,0.00020837,2]
[376732842,1754091052735,-12644.26590849,0.00020837,2]
[376732843,1754091052745,-215.03686253,0.00020837,2]
[376732844,1754091052755,-160.0,0.00020838,2]
[376732845,1754091052765,-1500.0,0.00020868,2]
[376732846,1754091052774,-275.06325816,0.00020873,2]
[376732847,1754091052784,-500.0,0.00020873,2]
[376732848,1754091052794,-500.0,0.00020873,2]
[376732849,1754091052804,-500.0,0.00020873,2]
[376732850,1754091052813,-500.0,0.00020873,2]
[376732851,1754091052825,-500.0,0.00020873,2]
[376732852,1754091052836,-150.0,0.00020873,2]
[376732853,1754091052846,-501.27535184,0.00020873,2]
[376732854,1754091052855,-500.0,0.00020873,2]
[376732855,1754091052864,-530.25,0.00020882,2]
[376732856,1754091052874,-526.08,0.00020882,2]
[376732857,1754091052884,-904.57,0.00020882,2]
[376732858,1754091052894,-460.0,0.00020882,2]
[376732859,1754091052903,-460.0,0.00020882,2]
[376732860,1754091052911,-1626.44,0.00020883,2]
[376732861,1754091052920,-650.75,0.00020883,2]
[376732862,1754091052930,-460.0,0.00020883,2]
[376732863,1754091052939,-565.52643619,0.00020883,2]
[376732864,1754091052949,-767.29,0.00020883,2]
[376732865,1754091052959,-1087.58,0.00020883,2]
[376732866,1754091052969,-683.87,0.00020883,2]
[376732867,1754091052978,-1381.02,0.00020883,2]
[376732868,1754091052987,-525.6,0.00020883,2]
[376732869,1754091052996,-460.0,0.00020883,2]
[376732870,1754091053006,-657.93,0.00020883,2]
[376732871,1754091053015,-460.0,0.00020883,2]
[376732872,1754091053025,-472.11,0.00020883,2]
[376732873,1754091053036,-460.0,0.00020883,2]
[376732874,1754091053045,-654.22,0.00020883,2]
[376732875,1754091053055,-1062.48,0.00020883,2]
[376732876,1754091053064,-460.0,0.00020883,2]
[376732877,1754091053074,-460.0,0.00020883,2]
[376732878,1754091053084,-460.0,0.00020884,2]
[376732879,1754091053094,-460.0,0.00020884,2]
[376732880,1754091053104,-534.57,0.00020884,2]
[376732881,1754091053113,-298.7,0.00020884,2]
[376732882,1754091053122,-215.90546135,0.00020884,2]
[376732883,1754091053132,-6339.86,0.00020884,2]
[376732884,1754091053141,-460.0,0.00020884,2]
[376732885,1754091053151,-460.0,0.00020884,2]
[376732886,1754091053160,-460.36,0.00020884,2]
[376732887,1754091053170,-460.0,0.00020884,2]
[376732888,1754091053180,-3261.32,0.00020884,2]
[376732889,1754091053189,-460.0,0.00020884,2]
[376732890,1754091053198,-854.96,0.00020884,2]
[376732891,1754091053207,-460.0,0.00020884,2]
[376732892,1754091053217,-582.52,0.00020884,2]
[376732893,1754091053226,-460.0,0.00020884,2]
[376732894,1754091053236,-460.0,0.00020884,2]
[376732895,1754091053245,-946.35,0.00020884,2]
[376732896,1754091053254,-587.9,0.00020884,2]
[376732897,1754091053263,-460.0,0.00020884,2]
[376732898,1754091053272,-534.27,0.00020884,2]
[376732899,1754091053282,-460.0,0.00020884,2]
[376732900,1754091053291,-460.0,0.00020884,2]
[376732901,1754091053300,-460.0,0.00020884,2]
[376732902,1754091053310,-612.02,0.00020884,2]
[376732903,1754091053319,-460.0,0.00020884,2]
[376732904,1754091053337,-516.09,0.00020884,2]
[376732905,1754091053349,-865.73,0.00020884,2]
[376732906,1754091053359,-545.71,0.00020884,2]
[376732907,1754091053369,-689.51,0.00020884,2]
[376732908,1754091053378,-1842.57,0.00020884,2]
[376732909,1754091053388,-460.0,0.00020884,2]
[376732910,1754091053398,-556.43,0.00020884,2]
[376732911,1754091053411,-460.0,0.00020884,2]
[376732912,1754091053421,-460.0,0.00020884,2]
[376732913,1754091053430,-460.0,0.00020884,2]
[376732914,1754091053440,-546.06,0.00020884,2]
[376732915,1754091053451,-468.36,0.00020884,2]
[376732916,1754091053462,-460.0,0.00020884,2]
[376732917,1754091053472,-460.0,0.00020884,2]
[376732918,1754091053483,-460.0,0.00020884,2]
[376732919,1754091053494,-920.78,0.00020884,2]
[376732920,1754091053504,-460.0,0.00020884,2]
[376732921,1754091053513,-460.0,0.00020884,2]
[376732922,1754091053523,-691.07,0.00020884,2]
[376732923,1754091053533,-151.0,0.00020884,2]
[376732924,1754091053543,-926.42,0.00020885,2]
[376732925,1754091053553,-460.0,0.00020885,2]
[376732926,1754091053562,-460.0,0.00020885,2]
[376732927,1754091053573,-151.0,0.00020885,2]
[376732928,1754091053582,-460.0,0.00020885,2]
[376732929,1754091053592,-1004.42,0.00020885,2]
[376732930,1754091053602,-693.44,0.00020885,2]
[376732931,1754091053612,-511.5,0.00020885,2]
[376732932,1754091053622,-151.0,0.00020885,2]
[376732933,1754091053632,-460.0,0.00020885,2]
[376732934,1754091053642,-1029.66,0.00020885,2]
[376732935,1754091053652,-635.142156,0.00020885,2]
[376732936,1754091053663,-635.142156,0.00020885,2]
[376732937,1754091053673,-460.0,0.00020885,2]
[376732938,1754091053683,-175.121503,0.00020885,2]
[376732939,1754091053693,-175.121503,0.00020885,2]
[376732940,1754091053703,-462.19,0.00020885,2]
[376732941,1754091053713,-460.0,0.00020885,2]
[376732942,1754091053723,-460.0,0.00020885,2]
[376732943,1754091053733,-846.17,0.00020885,2]
[376732944,1754091053743,-621.67,0.00020885,2]
[376732945,1754091053753,-924.56,0.00020885,2]
[376732946,1754091053763,-566.98,0.00020885,2]
[376732947,1754091053774,-1675.56,0.00020885,2]
[376732948,1754091053784,-460.0,0.00020885,2]
[376732949,1754091053794,-460.0,0.00020885,2]
[376732950,1754091053804,-460.0,0.00020885,2]
[376732951,1754091053814,-1419.71,0.00020885,2]
[376732952,1754091053824,-460.0,0.00020885,2]
[376732953,1754091053834,-460.0,0.00020885,2]
[376732954,1754091053844,-460.0,0.00020885,2]
[376732955,1754091053854,-460.0,0.00020885,2]
[376732956,1754091053864,-460.0,0.00020885,2]
[376732957,1754091053873,-557.79,0.00020886,2]
[376732958,1754091053884,-460.0,0.00020886,2]
[376732959,1754091053893,-1508.75,0.00020886,2]
[376732960,1754091053903,-460.0,0.00020886,2]
[376732961,1754091053912,-460.0,0.00020886,2]
[376732962,1754091053922,-460.0,0.00020886,2]
[376732963,1754091053932,-460.0,0.00020886,2]
[376732964,1754091053941,-554.96,0.00020886,2]
[376732965,1754091053951,-460.0,0.00020886,2]
[376732966,1754091053960,-460.0,0.00020886,2]
[376732967,1754091053970,-1916.86,0.00020886,2]
[376732968,1754091053980,-151.0,0.00020887,2]
[376732969,1754091053990,-151.0,0.00020887,2]
[376732970,1754091053999,-727.88,0.00020887,2]
[376732971,1754091054009,-151.0,0.00020887,2]
[376732972,1754091054018,-151.0,0.00020887,2]
[376732973,1754091054028,-151.0,0.00020887,2]
[376732974,1754091054037,-535.37,0.00020887,2]
[376732975,1754091054158,-2985.37,0.00020887,2]
[376732976,1754091054168,-460.0,0.00020887,2]
[376732977,1754091054178,-460.0,0.00020887,2]
[376732978,1754091054187,-1912.99,0.00020888,2]
[376732979,1754091054197,-151.0,0.00020902,2]
[376732980,1754091054206,-151.0,0.00020902,2]
[376732981,1754091054216,-151.0,0.00020902,2]
[376732982,1754091054226,-151.0,0.00020903,2]
[376732983,1754091054235,-1000.0,0.00020921,2]
[376732984,1754091054245,-500.0,0.00020921,2]
[376732985,1754091054254,-163.0,0.00020932,3]
[376732986,1754091054264,-420.0,0.00020956,2]
[376732987,1754091054273,-151.0,0.00021,3]
[376732988,1754091054283,-8057.71660867,0.00021,5]
[376732989,1754091054292,-53804.55028232,0.00021,2]
[376732990,1754091054302,-653.46840815,0.00021003,4]
[376732991,1754091054312,-1680.0,0.00021057,2]
[376732992,1754091054321,-546.40367112,0.00021058,2]
[376732993,1754091054331,-151.0,0.000211,3]
[376732994,1754091054340,-900.0,0.00021151,2]
[376732995,1754091054350,-530.25,0.00021156,2]
[376732996,1754091054361,-526.08,0.00021156,2]
[376732997,1754091054370,-904.57,0.00021156,2]
[376732998,1754091054380,-460.0,0.00021156,2]
[376732999,1754091054389,-460.0,0.00021156,2]
[376733000,1754091054400,-1626.44,0.00021157,2]
[376733001,1754091054410,-650.75,0.00021157,2]
[376733002,1754091054420,-460.0,0.00021157,2]
[376733003,1754091054429,-767.29,0.00021157,2]
[376733004,1754091054439,-1087.58,0.00021157,2]
[376733005,1754091054450,-683.87,0.00021157,2]
[376733006,1754091054459,-1381.02,0.00021157,2]
[376733007,1754091054470,-525.6,0.00021157,2]
[376733008,1754091054479,-460.0,0.00021157,2]
[376733009,1754091054489,-657.93,0.00021157,2]
[376733010,1754091054499,-460.0,0.00021157,2]
[376733011,1754091054508,-472.11,0.00021157,2]
[376733012,1754091054517,-460.0,0.00021157,2]
[376733013,1754091054527,-654.22,0.00021157,2]
[376733014,1754091054538,-1062.48,0.00021157,2]
[376733015,1754091054547,-170.2,0.00021157,2]
[376733016,1754091054557,-460.0,0.00021157,2]
[376733017,1754091054567,-460.0,0.00021158,2]
[376733018,1754091054581,-460.0,0.00021158,2]
[376733019,1754091054591,-534.57,0.00021158,2]
[376733020,1754091054602,-6339.86,0.00021158,2]
[376733021,1754091054612,-460.0,0.00021158,2]
[376733022,1754091054622,-460.0,0.00021158,2]
[376733023,1754091054632,-460.36,0.00021158,2]
[376733024,1754091054642,-3261.32,0.00021158,2]
[376733025,1754091054652,-460.0,0.00021158,2]
[376733026,1754091054661,-854.96,0.00021158,2]
[376733027,1754091054671,-460.0,0.00021158,2]
[376733028,1754091054681,-582.52,0.00021158,2]
[376733029,1754091054691,-460.0,0.00021158,2]
[376733030,1754091054700,-460.0,0.00021158,2]
[376733031,1754091054710,-946.35,0.00021158,2]
[376733032,1754091054719,-587.9,0.00021158,2]
[376733033,1754091054729,-347.52702442,0.00021158,2]
[376733034,1754091054739,-534.27,0.00021158,2]
[376733035,1754091054749,-460.0,0.00021158,2]
[376733036,1754091054758,-460.0,0.00021158,2]
[376733037,1754091054769,-460.0,0.00021158,2]
[376733038,1754091054778,-612.02,0.00021158,2]
[376733039,1754091054789,-460.0,0.00021158,2]
[376733040,1754091054799,-516.09,0.00021158,2]
[376733041,1754091054810,-865.73,0.00021158,2]
[376733042,1754091054822,-545.71,0.00021158,2]
[376733043,1754091054832,-689.51,0.00021158,2]
[376733044,1754091054842,-1842.57,0.00021158,2]
[376733045,1754091054852,-460.0,0.00021158,2]
[376733046,1754091054862,-556.43,0.00021158,2]
[376733047,1754091054872,-460.0,0.00021158,2]
[376733048,1754091054883,-460.0,0.00021158,2]
[376733049,1754091054893,-460.0,0.00021158,2]
[376733050,1754091054902,-546.06,0.00021158,2]
[376733051,1754091054911,-468.36,0.00021158,2]
[376733052,1754091054921,-460.0,0.00021158,2]
[376733053,1754091054930,-460.0,0.00021158,2]
[376733054,1754091054941,-460.0,0.00021158,2]
[376733055,1754091054951,-920.78,0.00021158,2]
[376733056,1754091054961,-460.0,0.00021158,2]
[376733057,1754091054971,-691.07,0.00021158,2]
[376733058,1754091054980,-151.0,0.00021159,2]
[376733059,1754091054991,-151.0,0.00021159,2]
[376733060,1754091055000,-151.0,0.00021159,2]
[376733061,1754091055009,-151.454004,0.00021159,2]
[376733062,1754091055019,-151.0,0.00021159,2]
[376733063,1754091055028,-151.0,0.00021159,2]
[376733064,1754091055037,-151.0,0.00021159,2]
[376733065,1754091055047,-151.0,0.00021159,2]
[376733066,1754091055057,-926.42,0.00021159,2]
[376733067,1754091055066,-151.0,0.00021159,2]
[376733068,1754091055079,-460.0,0.00021159,2]
[376733069,1754091055088,-508.57314319,0.00021159,2]
[376733070,1754091055098,-151.0,0.00021159,2]
[376733071,1754091055107,-460.0,0.00021159,2]
[376733072,1754091055117,-1004.42,0.00021159,2]
[376733073,1754091055126,-693.44,0.00021159,2]
[376733074,1754091055136,-511.5,0.00021159,2]
[376733075,1754091055145,-151.0,0.00021159,2]
[376733076,1754091055155,-460.0,0.00021159,2]
[376733077,1754091055164,-1029.66,0.00021159,2]
[376733078,1754091055173,-460.0,0.00021159,2]
[376733079,1754091055182,-462.19,0.00021159,2]
[376733080,1754091055191,-460.0,0.00021159,2]
[376733081,1754091055200,-460.0,0.00021159,2]
[376733082,1754091055209,-846.17,0.00021159,2]
[376733083,1754091055219,-151.0,0.00021159,2]
[376733084,1754091055228,-330.289489,0.00021159,2]
[376733085,1754091055237,-330.289489,0.00021159,2]
[376733086,1754091055247,-151.0,0.00021159,2]
[376733087,1754091055256,-621.67,0.00021159,2]
[376733088,1754091055265,-184.053969,0.00021159,2]
[376733089,1754091055274,-184.053969,0.00021159,2]
[376733090,1754091055283,-924.56,0.00021159,2]
[376733091,1754091055293,-566.98,0.00021159,2]
[376733092,1754091055302,-1675.56,0.00021159,2]